Cogmind - Beta 16 @@@ ROGUE MODE // 2026.01.27 @ 16:10:28 Player: mule Result: Destroyed by H-66 Slayer with Heavy Assault Rifle Performance ------------- Evolutions (1) 500 Regions Visited (6) 1200 Robots Destroyed (16) 80 Value Destroyed (368) 368 Prototype IDs (2) 40 Alien Tech Used (0) 0 Bonus (0) 0 TOTAL SCORE: 2188 Bonus ------- None Cogmind --------- Core Integrity 0/400 Matter 270/300 Energy 50/100 System Corruption 0% Temperature Cool (12) Movement Walking (105) Location -6/Proximity Caves Parts ------- > --- POWER (2) -------- (None) > --- PROPULSION (2) --- Aluminum Leg Aluminum Leg > --- UTILITY (3) ------ Small Storage Unit Improved Utility Shielding Hacking Drone Bay (1/1) > --- WEAPON (2) ------- RU-N14's Throwing Claymores CR-A16's Pointy Stick > --- INVENTORY (8) ---- Improved Heat Sink Peak State ------------ > --- POWER ------------ Ion Engine Ion Engine > --- PROPULSION ------- Improved Carbon-fiber Leg Makeshift Leg > --- UTILITY ---------- Small Storage Unit Large Matter Pod Hacking Drone Bay > --- WEAPON ----------- Gauss Cannon RU-N14's Throwing Claymores > --- INVENTORY -------- Ion Engine Aluminum Leg Aluminum Leg Aluminum Leg Improved Heat Sink Improved Utility Shielding CR-A16's Pointy Stick [Rating: 33] Favorites ----------- Power Ion Engine Engine Ion Engine Power Core Light Nuclear Core Propulsion Aluminum Leg Leg Aluminum Leg Utility Small Storage Unit Device Improved Heat Sink Storage Small Storage Unit Weapon Beam Cannon Energy Cannon Beam Cannon Ballistic Gun Assault Rifle Ballistic Cannon Gauss Cannon Special Weapon RU-N14's Throwing Claymores Piercing Weapon CR-A16's Pointy Stick Build | -11 -10 -10 -9 -9 -7 -6 ------- Run | Yrd Mat Min Mat Min Zio Pro Slots Evolved 2 | . . . 2 . . . Power 1 | . . . 1 . . . Propulsion . | . . . . . . . Utility 1 | . . . 1 . . . Weapon . | . . . . . . . Parts Attached 24 | 5 5 3 1 . 4 6 Power 5 | 1 1 1 1 . . 1 Engine 4 | 1 1 . 1 . . 1 Core 1 | . . 1 . . . . Reactor . | . . . . . . . Propulsion 6 | 2 . 1 . . 1 2 Treads . | . . . . . . . Leg 6 | 2 . 1 . . 1 2 Wheel . | . . . . . . . Hover . | . . . . . . . Flight . | . . . . . . . Utility 6 | 1 2 1 . . 1 1 Device 3 | . 1 1 . . 1 . Storage 2 | 1 1 . . . . . Processor . | . . . . . . . Hackware . | . . . . . . . Protection 1 | . . . . . . 1 Artifact . | . . . . . . . Weapon 7 | 1 2 . . . 2 2 Energy Gun . | . . . . . . . Energy Cannon 2 | . 2 . . . . . Ballistic Gun 1 | 1 . . . . . . Ballistic Cannon 1 | . . . . . 1 . Launcher . | . . . . . . . Special Weapon 2 | . . . . . 1 1 Impact Weapon . | . . . . . . . Slashing Weapon . | . . . . . . . Piercing Weapon 1 | . . . . . . 1 Special Melee Weapon . | . . . . . . . Unidentified Prototypes 2 | . . . . . 2 . Parts Lost 10 | . . . . . . 10 Power 4 | . . . . . . 4 Propulsion 3 | . . . . . . 3 Utility 1 | . . . . . . 1 Weapon 2 | . . . . . . 2 Highest Loss Streak 5 | . . . . . . 5 To Critical Strikes 1 | . . . . . . 1 Average Backups 7 | 4 7 7 6 8 8 6 Power 1 | . 1 3 2 2 2 1 Propulsion 1 | 3 3 1 1 1 1 2 Utility 1 | . 1 . 1 3 2 2 Weapon 1 | 1 1 2 2 2 2 1 Tool/Special . | . . . . . . . Unused Backups 12 | . 5 2 . . 5 . Power . | . . . . . . . Propulsion 5 | . 3 2 . . . . Utility 4 | . 1 . . . 3 . Weapon 3 | . 1 . . . 2 . Tool/Special . | . . . . . . . Average Slot Usage (%) 99 | . 96 99 99 100 100 97 Engine 10 | . 14 4 11 11 11 18 Core 8 | . . 10 11 11 11 2 Leg 23 | . 28 27 22 22 22 21 Device 10 | . 4 9 11 11 11 11 Storage 21 | . 22 18 21 22 22 21 Energy Cannon 17 | . 14 28 22 22 16 2 Ballistic Gun 1 | . 10 . . . . . Ballistic Cannon 3 | . . . . . 4 9 Piercing Weapon 1 | . . . . . . 6 Peak Build Rating 33 | 5 7 11 13 13 32 33 Average Rating 16 | 3 6 10 12 13 19 27 On Entrance 11 | . 5 7 11 13 13 32 Avg Prop Armor Cover (%) . | . . . . . . . Naked Turns . | . . . . . . . Heaviest Build 34 | 12 19 19 25 25 34 34 Greatest Support 38 | 20 20 20 20 20 28 38 Greatest Overweight (x) 1 | 1 . 1 1 1 1 1 Average Overweight (x) . | . . . 1 1 1 . Largest Inventory Capacity 8 | 8 8 8 8 8 8 8 Average Capacity 7 | 7 8 8 8 8 8 8 Most Carried 8 | 7 8 8 8 8 8 8 Average Carried 7 | 5 7 7 6 8 7 6 Final Capacity 8 | 8 8 8 8 8 8 8 Final Carried 8 | 7 8 7 8 8 8 1 Class Distribution -------------------- 98% | Mutant Dominant Class ---------------- Mutant | -10/Materials Mutant | -10/Mines Mutant | -9/Materials Mutant | -9/Mines Mutant | -7/Zion Mutant | -6/Proximity Caves Resources | -11 -10 -10 -9 -9 -7 -6 ----------- Run | Yrd Mat Min Mat Min Zio Pro Matter Collected 864 | 250 251 113 77 . 112 61 Remotely . | . . . . . . . Salvage Created 518 | . 251 163 77 . . 27 Parts 30 | . 5 16 6 . . 3 Haulers Intercepted 1 | . . . 1 . . . Recyclers Shooed 1 | . 1 . . . . . Parts Field Recycled . | . . . . . . . Retrieved Matter . | . . . . . . . Parts Self-Destructed 3 | . . . . . . 3 Prevented . | . . . . . . . Parts Restored . | . . . . . . . Kills | -11 -10 -10 -9 -9 -7 -6 ------- Run | Yrd Mat Min Mat Min Zio Pro Combat Hostiles Destroyed 13 | . 4 7 . . . 2 Melee 1 | . . . . . . 1 Guns 1 | . 1 . . . . . Cannons 10 | . 2 7 . . . 1 Classes Destroyed 5 | . 2 1 2 . . . Hauler 1 | . . . 1 . . . Recycler 1 | . 1 . . . . . Operator 1 | . . . 1 . . . Swarmer 7 | . . 5 . . . 2 Grunt 6 | . 4 2 . . . . Best Kill Streak 3 | . 3 3 1 . . 1 Combat Bots Only 3 | . 3 3 . . . 1 Max Kills in Single Turn 2 | . 1 2 1 . . 1 Gunslinging . | . . . . . . . Exploded . | . . . . . . . Melee 1 | . . . . . . 1 Uniques/NPCs Destroyed . | . . . . . . . Combat | -11 -10 -10 -9 -9 -7 -6 -------- Run | Yrd Mat Min Mat Min Zio Pro Hostile Shots Fired 171 | . 19 29 . . . 123 Missed 61 | . 8 11 . . . 42 Hits 110 | . 11 18 . . . 81 Projectile 110 | . 11 18 . . . 81 Critical Strikes 3 | . . . . . . 3 Damage Taken 1682 | . 129 176 . . . 1377 Core 465 | . . 60 . . . 405 Absorbed by Shields . | . . . . . . . Core Remaining (%) 88 | 100 . 76 . . . . Volleys Fired 39 | . 15 11 4 . . 9 Largest 2 | . 2 2 2 . . 2 Hottest 140 | . 120 120 120 . . 140 Shots Fired 70 | . 23 22 8 . . 17 Gun 10 | . 10 . . . . . Cannon 57 | . 13 22 8 . . 14 Launcher . | . . . . . . . Special 3 | . . . . . . 3 Kinetic 19 | . 10 . . . . 9 Thermal 49 | . 13 22 8 . . 6 Explosive 2 | . . . . . . 2 Electromagnetic . | . . . . . . . Robot Hit Streak 5 | . 5 4 3 . . 4 Robot Miss Streak 4 | . 4 2 2 . . 3 Penetration Max . | . . . . . . . Secondary Targets . | . . . . . . . Shots Hit Robots 38 | . 13 13 3 . . 9 Core Hits 18 | . 6 7 2 . . 3 Critical Kills 2 | . 2 . . . . . Critical Parts Destroyed . | . . . . . . . Critical Strikes 3 | . 2 . . . . 1 Meltdown 1 | . 1 . . . . . Destroy 1 | . 1 . . . . . Blast 1 | . . . . . . 1 Melee Attacks 3 | . . . . . . 3 Impact . | . . . . . . . Slashing . | . . . . . . . Piercing 3 | . . . . . . 3 Sneak Attacks . | . . . . . . . Combat Hostiles . | . . . . . . . Follow-up Attacks . | . . . . . . . Damage Inflicted 1018 | . 230 243 54 . . 491 Guns 46 | . 46 . . . . . Cannons 647 | . 177 243 54 . . 173 Explosions 256 | . . . . . . 256 Melee 30 | . . . . . . 30 Ramming 7 | . 7 . . . . . Kinetic 185 | . 46 . . . . 139 Thermal 508 | . 177 243 54 . . 34 Explosive 256 | . . . . . . 256 Electromagnetic . | . . . . . . . Impact . | . . . . . . . Slashing 32 | . . . . . . 32 Piercing 30 | . . . . . . 30 Highest Corruption 4 | . 4 4 . . . . Average Corruption 3 | . 3 4 . . . . Corruption Purged . | . . . . . . . Corruption Blocked . | . . . . . . . Effects 23 | . 2 21 . . . . Message Errors 8 | . . 8 . . . . Matter Fused 9 | . 1 8 . . . . Energy Discharges 3 | . . 3 . . . . Parts Rejected 1 | . 1 . . . . . Data Loss (minor) 1 | . . 1 . . . . Data Loss (major) 1 | . . 1 . . . . Overload Shots . | . . . . . . . Overflow Damage 28 | . . 16 . . . 12 Projectiles 19 | . . 16 . . . 3 Explosions 9 | . . . . . . 9 Melee . | . . . . . . . Knockbacks 3 | . 1 . . . . 2 Impact 1 | . 1 . . . . . Kinetic 2 | . . . . . . 2 Secondary . | . . . . . . . Self-Inflicted Damage . | . . . . . . . Shots . | . . . . . . . Rammed . | . . . . . . . Targets Rammed 2 | . 2 . . . . . Kicked 2 | . 2 . . . . . Crushed . | . . . . . . . Highest Temperature 327 | . 223 327 60 . . 255 Average Temperature 102 | . 97 118 30 . . 115 Received Heat Transfer 144 | . 69 27 . . . 48 Siege Activations . | . . . . . . . Martial Activations . | . . . . . . . Shielding Activations . | . . . . . . . Robots Disrupted . | . . . . . . . Combat Hostiles . | . . . . . . . Robots Corrupted . | . . . . . . . Combat Hostiles . | . . . . . . . Parts Fried . | . . . . . . . Impact Corruptions . | . . . . . . . Robots Melted 1 | . 1 . . . . . Combat Hostiles 1 | . 1 . . . . . Parts Melted 4 | . 4 . . . . . Heat Transferred 1073 | . 370 518 111 . . 74 Parts Sabotaged . | . . . . . . . Parts Stolen . | . . . . . . . Parts Stripped . | . . . . . . . Power Chain Reactions . | . . . . . . . Alert | -11 -10 -10 -9 -9 -7 -6 ------- Run | Yrd Mat Min Mat Min Zio Pro Maximum Alert Level . | . . . . . . . Low Security (%) 100 | 100 100 100 100 100 . . Level 1 . | . . . . . . . Level 2 . | . . . . . . . Level 3 . | . . . . . . . Level 4 . | . . . . . . . Level 5 . | . . . . . . . High Security . | . . . . . . . Max Security . | . . . . . . . Peak Influence 96 | . 96 70 20 . . . Initial 23 | . . 23 . . . . Average 16 | . 28 16 4 . . . Influence Increases 420 | . 151 160 29 . . 80 Destroy 0b10 Robot/C 260 | . 80 140 . . . 40 Destroy 0b10 Robot/NC 15 | . 5 . 10 . . . Destroy Leader 52 | . 20 20 2 . . 10 Successful Hack 2 | . . . 2 . . . Disable Machine 15 | . . . 15 . . . Destroy Structure 1 | . 1 . . . . . Lose Combat Pursuer 75 | . 45 . . . . 30 Influence Decreases 420 | . 90 221 29 . . 80 Entered New Map 38 | . . 38 . . . . Time Decay 372 | . 90 183 29 . . 70 Lost Part 10 | . . . . . . 10 Squads Dispatched 3 | . 1 . 2 . . . Investigation . | . . . . . . . Extermination . | . . . . . . . Reinforcement 3 | . 1 . 2 . . . Assault . | . . . . . . . Garrison . | . . . . . . . Intercept . | . . . . . . . Searches Triggered . | . . . . . . . Construction Impeded . | . . . . . . . Haulers Reinforced . | . . . . . . . Active Scanning Responses . | . . . . . . . Cargo Convoy Interrupts . | . . . . . . . Stealth | -11 -10 -10 -9 -9 -7 -6 --------- Run | Yrd Mat Min Mat Min Zio Pro Distress Signals 3 | . 2 . 1 . . . Communications Jammed . | . . . . . . . Distress Signals . | . . . . . . . Times Spotted 27 | . 10 8 2 . . 7 Peak Tracking Total 6 | . 6 3 1 . . 3 Tactical Retreats 4 | . 2 . . . . 2 Traps | -11 -10 -10 -9 -9 -7 -6 ------- Run | Yrd Mat Min Mat Min Zio Pro Traps Triggered 3 | . 3 . . . . . Indirectly . | . . . . . . . Trap Hack Attempts . | . . . . . . . Triggered . | . . . . . . . Disarmed . | . . . . . . . Reprogrammed . | . . . . . . . Reused . | . . . . . . . Traps Extracted . | . . . . . . . Installed . | . . . . . . . Triggered . | . . . . . . . Machines | -11 -10 -10 -9 -9 -7 -6 ---------- Run | Yrd Mat Min Mat Min Zio Pro Machines Disabled 1 | . . . 1 . . . Max in Single Turn 1 | . . . 1 . . . Machines Repaired . | . . . . . . . Machines Dismantled . | . . . . . . . Machines Sabotaged . | . . . . . . . Overloaded Fab Kills . | . . . . . . . Hacking | -11 -10 -10 -9 -9 -7 -6 --------- Run | Yrd Mat Min Mat Min Zio Pro Machines Accessed 1 | . . . 1 . . . Terminals . | . . . . . . . Fabricators . | . . . . . . . Repair Stations . | . . . . . . . Recycling Units . | . . . . . . . Scanalyzers 1 | . . . 1 . . . Garrison Access . | . . . . . . . Total Hacks 4 | . . . 4 . . . Successful 3 | . . . 3 . . . Failed 1 | . . . 1 . . . Catastrophic . | . . . . . . . Database Lockouts . | . . . . . . . Manual 2 | . . . . . 2 . Terminals . | . . . . . . . Fabricators . | . . . . . . . Repair Stations . | . . . . . . . Recycling Units . | . . . . . . . Scanalyzers 4 | . . . 4 . . . Garrison Access . | . . . . . . . Terminal Hacks . | . . . . . . . Fabricator Hacks . | . . . . . . . Repair Station Hacks . | . . . . . . . Recycling Unit Hacks . | . . . . . . . Scanalyzer 3 | . . . 3 . . . Retrieve Study 3 | . . . 3 . . . Garrison Access Hacks . | . . . . . . . Unauthorized Hacks . | . . . . . . . Terminals . | . . . . . . . Fabricators . | . . . . . . . Repair Stations . | . . . . . . . Recycling Units . | . . . . . . . Scanalyzers . | . . . . . . . Garrison Access . | . . . . . . . Data Cores Recovered . | . . . . . . . Used . | . . . . . . . Hacking Detections 1 | . . . 1 . . . Full Trace Events . | . . . . . . . Feedback Events . | . . . . . . . Feedback Blocked . | . . . . . . . Robot Schematics Acquired . | . . . . . . . Robots Built . | . . . . . . . Authchips . | . . . . . . . Time . | . . . . . . . Total Robot Build Rating . | . . . . . . . Part Schematics Acquired . | . . . . . . . Parts Built . | . . . . . . . Authchips . | . . . . . . . Time . | . . . . . . . Total Part Build Rating . | . . . . . . . Part Studies Acquired 2 | . . . 2 . . . Parts Repaired . | . . . . . . . Time . | . . . . . . . Parts Recycled . | . . . . . . . Recycled Matter . | . . . . . . . Retrieved Matter . | . . . . . . . Retrieved Components . | . . . . . . . Parts Scanalyzed . | . . . . . . . Part Schematics Acquired . | . . . . . . . Parts Damaged . | . . . . . . . Bothacking | -11 -10 -10 -9 -9 -7 -6 ------------ Run | Yrd Mat Min Mat Min Zio Pro Used RIF Installer . | . . . . . . . Robots Hacked . | . . . . . . . Non-combat . | . . . . . . . Combat . | . . . . . . . Robot Hacks Applied . | . . . . . . . Relay Couplers Released . | . . . . . . . Fabnet Peak Effective % . | . . . . . . . Robots Rewired . | . . . . . . . Allies Hacked . | . . . . . . . Hacks Repelled . | . . . . . . . Allies | -11 -10 -10 -9 -9 -7 -6 -------- Run | Yrd Mat Min Mat Min Zio Pro Total Allies . | . . . . . . . Largest Group . | . . . . . . . Highest-Rated Group . | . . . . . . . Highest-Rated Ally . | . . . . . . . Total Orders . | . . . . . . . Ally Attacks . | . . . . . . . Total Damage . | . . . . . . . Kills . | . . . . . . . Allies Corrupted . | . . . . . . . Allies Melted . | . . . . . . . Intel | -11 -10 -10 -9 -9 -7 -6 ------- Run | Yrd Mat Min Mat Min Zio Pro Active Infowar (turns) 125 | . 125 . . . . . Structural 125 | . 125 . . . . . Robot Analysis Total . | . . . . . . . Derelict Logs Recovered 3 | . . 2 . . . 1 Drone Launches 1 | . . . . . . 1 Drone Recoveries 1 | . . . . . . 1 Exploration | -11 -10 -10 -9 -9 -7 -6 ------------- Run | Yrd Mat Min Mat Min Zio Pro Turns Passed 3307 | 67 350 685 168 60 1469 508 Spaces Moved 2016 | 45 225 527 83 35 822 279 Core 10 | 10 . . . . . . Treads . | . . . . . . . Legs 2006 | 35 225 527 83 35 822 279 Wheels . | . . . . . . . Hover . | . . . . . . . Flight . | . . . . . . . Fastest Speed 50 | 50 120 120 175 175 175 122 Average Speed 152 | 118 120 120 184 175 177 163 Slowest Speed 210 | 190 120 190 190 175 182 210 Overloaded Moves . | . . . . . . . Propulsion Burnouts . | . . . . . . . Robots Hopped . | . . . . . . . Potential Cave-ins . | . . . . . . . Cave-ins Triggered . | . . . . . . . Exploration Rate (%) 36 | 3 37 78 12 18 70 40 Regions Visited 6 Branch Regions 4 Pre-discovered Areas 4 | . . 1 . . 2 1 Known Exits Taken . | . . . . . . . Unknown Exits Taken 6 | 1 1 1 1 1 1 . Scrap Searched 6 | . . 1 . . 4 1 Spaces Dug . | . . . . . . . Terrain Destroyed 17 | . . . . . . 17 Melee . | . . . . . . . Projectile 2 | . . . . . . 2 AOE 15 | . . . . . . 15 Terrain Rammed . | . . . . . . . Walls Destroyed . | . . . . . . . Machines Disabled . | . . . . . . . Actions | -11 -10 -10 -9 -9 -7 -6 --------- Run | Yrd Mat Min Mat Min Zio Pro Total 2164 | 56 283 557 91 34 836 307 Wait 22 | . 13 9 . . . . Move 2010 | 44 224 526 82 34 821 279 Hop . | . . . . . . . Pick Up 28 | 7 10 2 3 . 5 1 Fast Attach 14 | 5 4 2 . . 1 2 Attach 11 | . 1 1 2 . . 7 Detach 1 | . . . . . . 1 Swap 11 | . 4 1 . . 3 3 Drop 23 | . 10 5 . . 6 2 Fire 39 | . 15 11 4 . . 9 Melee 3 | . . . . . . 3 Ram . | . . . . . . . Kick 2 | . 2 . . . . . Crush . | . . . . . . . Escape Stasis . | . . . . . . . Rewire . | . . . . . . . Trap . | . . . . . . . Miscellaneous . | . . . . . . . Route ------- -11/Scrapyard -10/Materials -10/Mines -9/Materials -9/Mines -7/Zion -6/Proximity Caves History --------- Turn | Location | Event 22 | -11/Scrapyard | Discovered new exit (range 16) 68 | -11/Scrapyard | Entered Materials 274 | -10/Materials | Discovered new exit (range 7) 302 | -10/Materials | Build established: Mutant 418 | -10/Materials | Entered Mines 438 | -10/Mines | Discovered new exit (range 5) 554 | -10/Mines | Met a Derelict bent on vengeance 737 | -10/Mines | Learned Materials interactive machine intel 951 | -10/Mines | Learned location of Zion (-7) 1103 | -10/Mines | Entered Materials 1103 | -9/Materials | Evolved 2 slots: Power x1, Utility x1 1104 | -9/Materials | Loaded intel: 14 interactive machine locations 1242 | -9/Materials | Discovered new exit (range 15) 1271 | -9/Materials | Entered Mines 1323 | -9/Mines | A Derelict revealed a hidden shortcut to a safe place 1331 | -9/Mines | Entered Zion 1482 | -7/Zion | Given A8's code to call for help 1552 | -7/Zion | Learned location of Armory (-3) 1568 | -7/Zion | Received a hallucinogenic algorithm 1568 | -7/Zion | Ran a hallucination algorithm 1625 | -7/Zion | Ran a hallucination algorithm 1917 | -7/Zion | Found CR-A16's Pointy Stick 2042 | -7/Zion | Given the Hacking Drone Bay 2042 | -7/Zion | Found Prototype Device 2043 | -7/Zion | Identified Hacking Drone Bay 2674 | -7/Zion | Found Prototype Special Weapon 2675 | -7/Zion | Identified RU-N14's Throwing Claymores 2773 | -7/Zion | Discovered new exit (range 15) 2800 | -7/Zion | Entered Proximity Caves 3243 | -6/Proximity Caves | Core integrity fell below 50% 3270 | -6/Proximity Caves | Lost 3 parts (1p1n1w) 3285 | -6/Proximity Caves | Spotted B-75 Beast 3306 | -6/Proximity Caves | Core integrity fell below 20% 3308 | -6/Proximity Caves | Destroyed by H-66 Slayer with Heavy Assault Rifle Last Messages --------------- 03235_ Penetrated by Slug. 03239_ Imp. Carbon-fiber Leg destroyed. 03241_ Penetrated by Slug. 03259_ Acquired derelict log, extracted data. World map confirmed: -7/Zion. 03275_ Critical hit (Destroy). 03275_ Ion Engine destroyed. 03275_ Penetrated by Slug. 03278_ Slug penetrates Wall. 03278_ Penetrated by Slug. 03292_ Hacking Drone released from Hacking Drone Bay. 03294_ Ion Engine destroyed. 03296_ Slug penetrates Earth. 03297_ Aluminum Leg+ destroyed. 03297_ Lrg. Matter Pod destroyed. 03297_ Critical hit (Blast). 03298_ Hacking Drone retrieved by Hacking Drone Bay (no repairs). 03302_ Penetrated by Slug. 03305_ Mak. Leg destroyed. 03308_ Penetrated by Slug. Map ----- +----------------------------------------------------+ | ### #??# ##?????????????????? | | #??## ### #?????????????????? | | #???## ##? #?????????????????? | | ##????## ## #?????????????????? | | ##??????# #?????????????????? | | ##???????## #?????????????????? | | #?????????# ##?????????????????? | | ##?????????# ### #??????????????????? | | ##??????????# ##?# ### #??????????????????? | | #???????????# #??# #???????????????????????? | | #???????????## ??# #???????????????????????? | | ????????????# #?#h #???????????????????????? | | ????????????# #### h#???????????????????????? | | ????????????####?# ###?????????????????????? | | #??????????????#### #"#?????????????????????? | | #???????????????# #?????????????????????? | | #????????????????# ## #?????????????????????? | | #?????????????????# #; ##?????????????????????? | | ??????????????????# ;#??????????????????????? | | ??????????????# ?## ;#??????????????????????? | | ??????????????# $# ##?????????????????????? | | ??????????????# %##????????????????????? | | ??????????????# #????????????????????? | | ?????????????## ##???????????????????? | | ?????????????# % #???????????????????? | | ?????????????# BB @ ##???????????????????? | | ?????????????# BB ## %##???????????????????? | | ?????????????# ##### #???????????????????? | | ?????????????# #????## #???????????????????? | | ?????????????# ??????####???????????????????? | | ?????????????#######?????????????????????????????? | | ?????????????????????????????????????????????????? | | ?????????????????????????????????????????????????? | | ?????????????????????????????????????????????????? | | ?????????????????????????????????????????????????? | | ?????????????????????????????????????????????????? | | ?????????????????????????????????????????????????? | | ?????????????????????????????????????????????????? | | ?????????????????????????????????????????????????? | | ?????????????????????????????????????????????????? | | ?????????????????????????????????????????????????? | | ?????????????????????????????????????????????????? | | ?????????????????????????????????????????????????? | | ?????????????????????????????????????????????????? | | ?????????????????????????????????????????????????? | | | | | | | | | | | +----------------------------------------------------+ Best States ------------- Heat Dissipation 42 Energy Generation 19 Energy Capacity 400 Matter Stores 450 Matter Capacity 450 Sight Range 16 Terrain Scan Density 10 Evasion (%) 55 Item Schematics ----------------- None Robot Schematics ------------------ None Fabricated ------------ Nothing Repaired ---------- Nothing Studied --------- Mining Laser | -9/Materials | Hacked Aluminum Leg | -9/Materials | Hacked Alien Tech Used ----------------- None Achievements -------------- None Challenges ------------ None Game ------ Seed DirtyHardenedDoublenader Manual? 0 Play Time 00:30:07 Cumulative 18.9 hours Start 2026.01.27 @ 15:39:56 End 2026.01.27 @ 16:10:28 Sessions 1 Manual Loads 0 Difficulty Rogue Special Mode None Game No. 26 Rogue 26 Adventurer 0 Explorer 0 Win Type - Total 0 Types 0/0/0/0/0/0/0/0/0/0 Lore% 7 Gallery% 20 Achievement% 16 Wizard Run 0 Options --------- Layout 0 ASCII 0 Keyboard 1 Movement Vi Keybinds 0 Fullscreen 1 Font 18/X11 Map View 38x25 Zoom Use 95% Tactical HUD 1 Map Filters NONE Filters NONE Steam 1 RUN: 93f2ac44-7a90-4b48-8b02-c11c7dcdeaa1